{"text_format":"3","workbook":"xlsx","n_sheets":2,"sheets":["Výdavky","Kategória"],"not_rendered":{"defined_names":5},"read":"whole","date_system":"1900"}

{"sheet":"Výdavky","index":0,"n_rows":25,"n_cols":7,"rows_kept":25,"merged":[[0,1,0,5],[1,1,1,5]]}
[null,"ROZPOČET VÝDAVKOV",{"$nulls":4},{"$f":"TODAY()","v":{"v":44575,"d":"4457500.00%"}}]
[null,"Názov spoločnosti"]
[null,"Výdavok","Kategória","Rozpočet","Skutočné","Rozdiel (EUR)","Rozdiel (%)"]
[null,"Reklama","Prevádzka",null,null,{"$f":"IFERROR(SUM(Výdavky[[#This Row],[Rozpočet]]-Výdavky[[#This Row],[Skutočné]]), \"\")","v":0},{"$f":"IFERROR(SUM(Výdavky[[#This Row],[Rozdiel (EUR)]]/Výdavky[[#This Row],[Rozpočet]]),\"\")","v":""}]
[null,"Dlhy","Prevádzka",null,null,{"$f":"IFERROR(SUM(Výdavky[[#This Row],[Rozpočet]]-Výdavky[[#This Row],[Skutočné]]), \"\")","v":0},{"$f":"IFERROR(SUM(Výdavky[[#This Row],[Rozdiel (EUR)]]/Výdavky[[#This Row],[Rozpočet]]),\"\")","v":""}]
[null,"Benefity","Prevádzka",null,null,{"$f":"IFERROR(SUM(Výdavky[[#This Row],[Rozpočet]]-Výdavky[[#This Row],[Skutočné]]), \"\")","v":0},{"$f":"IFERROR(SUM(Výdavky[[#This Row],[Rozdiel (EUR)]]/Výdavky[[#This Row],[Rozpočet]]),\"\")","v":""}]
[null,"Zásoby","Prevádzka",null,null,{"$f":"IFERROR(SUM(Výdavky[[#This Row],[Rozpočet]]-Výdavky[[#This Row],[Skutočné]]), \"\")","v":0},{"$f":"IFERROR(SUM(Výdavky[[#This Row],[Rozdiel (EUR)]]/Výdavky[[#This Row],[Rozpočet]]),\"\")","v":""}]
[null,"Poštovné","Prevádzka",null,null,{"$f":"IFERROR(SUM(Výdavky[[#This Row],[Rozpočet]]-Výdavky[[#This Row],[Skutočné]]), \"\")","v":0},{"$f":"IFERROR(SUM(Výdavky[[#This Row],[Rozdiel (EUR)]]/Výdavky[[#This Row],[Rozpočet]]),\"\")","v":""}]
[null,"Nájomné alebo hypotéka","Prevádzka",null,null,{"$f":"IFERROR(SUM(Výdavky[[#This Row],[Rozpočet]]-Výdavky[[#This Row],[Skutočné]]), \"\")","v":0},{"$f":"IFERROR(SUM(Výdavky[[#This Row],[Rozdiel (EUR)]]/Výdavky[[#This Row],[Rozpočet]]),\"\")","v":""}]
[null,"Výdavky na predaj","Prevádzka",null,null,{"$f":"IFERROR(SUM(Výdavky[[#This Row],[Rozpočet]]-Výdavky[[#This Row],[Skutočné]]), \"\")","v":0},{"$f":"IFERROR(SUM(Výdavky[[#This Row],[Rozdiel (EUR)]]/Výdavky[[#This Row],[Rozpočet]]),\"\")","v":""}]
[null,"Dane","Prevádzka",null,null,{"$f":"IFERROR(SUM(Výdavky[[#This Row],[Rozpočet]]-Výdavky[[#This Row],[Skutočné]]), \"\")","v":0},{"$f":"IFERROR(SUM(Výdavky[[#This Row],[Rozdiel (EUR)]]/Výdavky[[#This Row],[Rozpočet]]),\"\")","v":""}]
[null,"Energie","Prevádzka",null,null,{"$f":"IFERROR(SUM(Výdavky[[#This Row],[Rozpočet]]-Výdavky[[#This Row],[Skutočné]]), \"\")","v":0},{"$f":"IFERROR(SUM(Výdavky[[#This Row],[Rozdiel (EUR)]]/Výdavky[[#This Row],[Rozpočet]]),\"\")","v":""}]
[null,"Iné","Prevádzka",null,null,{"$f":"IFERROR(SUM(Výdavky[[#This Row],[Rozpočet]]-Výdavky[[#This Row],[Skutočné]]), \"\")","v":0},{"$f":"IFERROR(SUM(Výdavky[[#This Row],[Rozdiel (EUR)]]/Výdavky[[#This Row],[Rozpočet]]),\"\")","v":""}]
[null,"Poistenie","Prevádzka",null,null,{"$f":"IFERROR(SUM(Výdavky[[#This Row],[Rozpočet]]-Výdavky[[#This Row],[Skutočné]]), \"\")","v":0},{"$f":"IFERROR(SUM(Výdavky[[#This Row],[Rozdiel (EUR)]]/Výdavky[[#This Row],[Rozpočet]]),\"\")","v":""}]
[null,"Úroky","Prevádzka",null,null,{"$f":"IFERROR(SUM(Výdavky[[#This Row],[Rozpočet]]-Výdavky[[#This Row],[Skutočné]]), \"\")","v":0},{"$f":"IFERROR(SUM(Výdavky[[#This Row],[Rozdiel (EUR)]]/Výdavky[[#This Row],[Rozpočet]]),\"\")","v":""}]
[null,"Telefón","Prevádzka",null,null,{"$f":"IFERROR(SUM(Výdavky[[#This Row],[Rozpočet]]-Výdavky[[#This Row],[Skutočné]]), \"\")","v":0},{"$f":"IFERROR(SUM(Výdavky[[#This Row],[Rozdiel (EUR)]]/Výdavky[[#This Row],[Rozpočet]]),\"\")","v":""}]
[null,"Údržba a opravy","Prevádzka",null,null,{"$f":"IFERROR(SUM(Výdavky[[#This Row],[Rozpočet]]-Výdavky[[#This Row],[Skutočné]]), \"\")","v":0},{"$f":"IFERROR(SUM(Výdavky[[#This Row],[Rozdiel (EUR)]]/Výdavky[[#This Row],[Rozpočet]]),\"\")","v":""}]
[null,"Právne poplatky","Prevádzka",null,null,{"$f":"IFERROR(SUM(Výdavky[[#This Row],[Rozpočet]]-Výdavky[[#This Row],[Skutočné]]), \"\")","v":0},{"$f":"IFERROR(SUM(Výdavky[[#This Row],[Rozdiel (EUR)]]/Výdavky[[#This Row],[Rozpočet]]),\"\")","v":""}]
[null,"Odpisy","Prevádzka",null,null,{"$f":"IFERROR(SUM(Výdavky[[#This Row],[Rozpočet]]-Výdavky[[#This Row],[Skutočné]]), \"\")","v":0},{"$f":"IFERROR(SUM(Výdavky[[#This Row],[Rozdiel (EUR)]]/Výdavky[[#This Row],[Rozpočet]]),\"\")","v":""}]
[null,"Preprava","Prevádzka",null,null,{"$f":"IFERROR(SUM(Výdavky[[#This Row],[Rozpočet]]-Výdavky[[#This Row],[Skutočné]]), \"\")","v":0},{"$f":"IFERROR(SUM(Výdavky[[#This Row],[Rozdiel (EUR)]]/Výdavky[[#This Row],[Rozpočet]]),\"\")","v":""}]
[null,"Úložisko","Prevádzka",null,null,{"$f":"IFERROR(SUM(Výdavky[[#This Row],[Rozpočet]]-Výdavky[[#This Row],[Skutočné]]), \"\")","v":0},{"$f":"IFERROR(SUM(Výdavky[[#This Row],[Rozdiel (EUR)]]/Výdavky[[#This Row],[Rozpočet]]),\"\")","v":""}]
[null,"Obchodné oddelenie","Personálne",null,null,{"$f":"IFERROR(SUM(Výdavky[[#This Row],[Rozpočet]]-Výdavky[[#This Row],[Skutočné]]), \"\")","v":0},{"$f":"IFERROR(SUM(Výdavky[[#This Row],[Rozdiel (EUR)]]/Výdavky[[#This Row],[Rozpočet]]),\"\")","v":""}]
[null,"Oddelenie predaja","Personálne",null,null,{"$f":"IFERROR(SUM(Výdavky[[#This Row],[Rozpočet]]-Výdavky[[#This Row],[Skutočné]]), \"\")","v":0},{"$f":"IFERROR(SUM(Výdavky[[#This Row],[Rozdiel (EUR)]]/Výdavky[[#This Row],[Rozpočet]]),\"\")","v":""}]
[null,"Iné","Personálne",null,null,{"$f":"IFERROR(SUM(Výdavky[[#This Row],[Rozpočet]]-Výdavky[[#This Row],[Skutočné]]), \"\")","v":0},{"$f":"IFERROR(SUM(Výdavky[[#This Row],[Rozdiel (EUR)]]/Výdavky[[#This Row],[Rozpočet]]),\"\")","v":""}]
[null,"Celkové výdavky",null,{"$f":"IFERROR(SUM(Výdavky[Rozpočet]), \"\")","v":0},{"$f":"IFERROR(SUM(Výdavky[Skutočné]), \"\")","v":0},{"$f":"IFERROR(SUM(Výdavky[Rozdiel (EUR)]), \"\")","v":0},{"$f":"IFERROR(SUM(Výdavky[[#Totals],[Rozdiel (EUR)]]/Výdavky[[#Totals],[Rozpočet]]),\"\")","v":""}]

{"sheet":"Kategória","index":1,"n_rows":4,"n_cols":2,"rows_kept":4}
[null,"Vyhľadávanie kategórií"]
[null,"Kategória"]
[null,"Prevádzka"]
[null,"Personálne"]